bitfinex-derivatives/quotes_BTCF0:USTF0_20250315
["timestamp","ask_amount","ask_price","bid_price","bid_amount"]
[1742018163123,0.2025667,84339.0,84338.0,0.21340072]
[1742018163433,0.2025667,84339.0,84336.0,0.0391]
[1742018163434,0.1185822,84329.0,84328.0,0.1185818]
[1742018163619,0.4793822,84329.0,84328.0,0.2085818]
[1742018163819,0.4793822,84329.0,84328.0,0.1185818]
[1742018163820,0.5386726,84329.0,84328.0,0.1185818]
[1742018164329,0.1185822,84328.0,84327.0,0.01314241]
[1742018164526,0.1185836,84327.0,84326.0,0.47388807]
[1742018164718,0.2031836,84327.0,84326.0,0.47388807]
[1742018164919,0.2031836,84327.0,84326.0,0.51428807]
[1742018165127,0.2031836,84327.0,84326.0,0.55538807]
[1742018167030,0.2031836,84327.0,84326.0,0.200085]
[1742018169031,0.2031836,84327.0,84326.0,0.21291342]
[1742018169230,0.2031836,84327.0,84326.0,0.09432842]
[1742018171032,0.2031836,84327.0,84326.0,0.21291342]
[1742018174532,0.2031836,84327.0,84326.0,0.09432842]
[1742018177436,0.2031836,84327.0,84326.0,0.05322842]
[1742018177638,0.2031836,84327.0,84326.0,0.0404]
[1742018179335,0.2031836,84327.0,84322.0,0.1185903]
[1742018179336,0.0592925,84326.0,84322.0,0.1185903]
[1742018179637,0.1185892,84323.0,84322.0,0.24987641]
[1742018180327,0.1185892,84323.0,84322.0,0.13128611]
[1742018180527,0.1994892,84323.0,84322.0,0.13128611]
[1742018182633,0.1994892,84323.0,84322.0,0.19478611]
[1742018186733,0.1994892,84323.0,84322.0,0.17048611]
[1742018188445,0.1994892,84323.0,84322.0,0.19488611]
[1742018189935,0.1994892,84323.0,84322.0,0.17048611]
[1742018191137,0.118592,84321.0,84320.0,0.059296]
[1742018191445,0.479392,84321.0,84320.0,0.098696]
[1742018191837,0.560892,84321.0,84320.0,0.098696]
[1742018193743,0.1185948,84319.0,84318.0,0.0592974]
[1742018194439,0.1994948,84319.0,84318.0,0.0592974]
[1742018194743,0.1994948,84319.0,84318.0,0.07198923]
[1742018194942,0.1994948,84319.0,84318.0,0.31628923]
[1742018195145,0.1994948,84319.0,84318.0,0.35528923]
[1742018197747,0.1994948,84319.0,84318.0,0.33098923]
[1742018199947,0.1994948,84319.0,84318.0,0.11098923]
[1742018200942,0.1185976,84317.0,84316.0,0.0592988]
[1742018201338,0.1988976,84317.0,84316.0,0.0592988]
[1742018201543,0.1988976,84317.0,84316.0,0.07190194]
[1742018201750,0.1988976,84317.0,84316.0,0.11290194]
[1742018205556,0.0803,84317.0,84316.0,0.30290194]
[1742018205754,0.0803,84317.0,84316.0,0.36920194]
[1742018216757,0.3608,84321.0,84320.0,0.1185934]
[1742018216963,0.3608,84321.0,84320.0,0.3585934]
[1742018217157,0.3608,84321.0,84320.0,0.4231934]
[1742018221362,0.3608,84321.0,84320.0,0.3988934]
[1742018221759,0.3608,84321.0,84320.0,0.4376934]
[1742018221959,0.4405,84321.0,84320.0,0.4376934]
[1742018225667,0.4405,84321.0,84320.0,0.4761934]
[1742018228168,0.4405,84321.0,84320.0,0.4376934]
[1742018232167,0.4405,84321.0,84320.0,0.3988934]
[1742018232576,0.4405,84321.0,84320.0,0.68339676]
[1742018236369,0.4405,84321.0,84320.0,0.64309676]
[1742018238380,0.4405,84321.0,84320.0,0.71759676]
[1742018244388,0.4405,84321.0,84320.0,0.4330934]
[1742018247085,0.3608,84321.0,84320.0,0.4330934]
[1742018247289,0.0736,84326.0,84325.0,0.1185864]
[1742018247490,0.0736,84326.0,84325.0,0.8550864]
[1742018247797,0.0736,84326.0,84325.0,0.7408864]
[1742018247991,0.0736,84326.0,84325.0,0.6250464]
[1742018248297,0.0736,84326.0,84325.0,0.9050464]
[1742018248482,0.3608,84329.0,84328.0,0.1185822]
[1742018248688,0.4608,84329.0,84328.0,0.4085822]
[1742018248892,0.1,84329.0,84328.0,0.4808822]
[1742018249687,0.1,84329.0,84328.0,0.8416822]
[1742018250487,0.1,84329.0,84328.0,0.9016822]
[1742018254599,0.1,84329.0,84328.0,0.7916822]
[1742018256093,0.1,84329.0,84328.0,0.8916822]
[1742018256396,0.1,84329.0,84328.0,0.8416822]
[1742018257201,0.1,84329.0,84328.0,0.9916822]
[1742018258091,0.1,84329.0,84328.0,1.27561466]
[1742018258688,0.00017788,84332.0,84330.0,0.1185793]
[1742018258893,0.0392,84337.0,84336.0,0.1185709]
[1742018259091,0.00177923,84339.0,84338.0,0.1185681]
[1742018259295,0.00177923,84339.0,84338.0,0.8985681]
[1742018259693,0.00177923,84339.0,84338.0,0.9758681]
[1742018259893,0.0379,84347.0,84339.0,0.1185667]
[1742018260093,0.03807788,84347.0,84339.0,0.9085667]
[1742018260288,0.03807788,84347.0,84339.0,0.9858667]
[1742018260497,0.03807788,84347.0,84346.0,0.1185568]
[1742018260696,0.03807788,84347.0,84346.0,0.5885568]
[1742018261295,0.03807788,84347.0,84346.0,0.6275568]
[1742018261594,0.03807788,84347.0,84346.0,0.6660568]
[1742018261795,0.1185364,84361.0,84360.0,0.1185372]
[1742018262002,0.3882364,84361.0,84360.0,0.1185372]
[1742018262205,0.5560364,84361.0,84360.0,0.1185372]
[1742018263107,0.5610364,84361.0,84360.0,0.1185372]
[1742018264204,0.5660364,84361.0,84360.0,0.1185372]
[1742018265099,0.6021364,84361.0,84360.0,0.1185372]
[1742018266701,0.6021364,84361.0,84360.0,0.13108072]
[1742018268300,0.8521364,84361.0,84360.0,0.13108072]
[1742018268504,0.6021364,84361.0,84360.0,0.13108072]
[1742018272013,0.6021364,84361.0,84360.0,0.1185372]
[1742018272419,0.8621364,84361.0,84360.0,0.1185372]
[1742018273102,0.8621364,84361.0,84353.0,0.0592728]
[1742018273103,0.0592692,84360.0,84353.0,0.0592728]
[1742018273304,0.4793456,84354.0,84353.0,0.0592728]
[1742018273504,0.7093456,84354.0,84353.0,0.0592728]
[1742018273804,0.7839456,84354.0,84353.0,0.0592728]
[1742018275906,0.7889456,84354.0,84353.0,0.0592728]
[1742018276215,0.7939456,84354.0,84353.0,0.0592728]
[1742018280916,0.118547,84353.0,84352.0,0.00017788]
[1742018281123,0.1185554,84347.0,84346.0,0.0592779]
[1742018281424,0.49175703,84347.0,84346.0,0.0592779]
[1742018281622,0.5537554,84347.0,84346.0,0.0592779]
[1742018282318,0.7987554,84347.0,84346.0,0.0592779]
[1742018284015,0.8037554,84347.0,84346.0,0.0592779]
[1742018284225,0.1185597,84344.0,84343.0,0.1185597]
[1742018284626,0.1941597,84344.0,84343.0,0.1185597]
[1742018284815,0.1941597,84344.0,84343.0,0.16770377]
[1742018285525,0.1981597,84344.0,84343.0,0.13130377]
[1742018286024,0.1981597,84344.0,84343.0,0.16820377]
[1742018286227,0.2031597,84344.0,84343.0,0.16820377]
[1742018286426,0.2031597,84344.0,84343.0,0.20680377]
[1742018287518,0.2031597,84344.0,84343.0,0.16820377]
[1742018288126,0.1185667,84339.0,84336.0,0.1185703]
[1742018288330,0.1185667,84339.0,84335.0,0.21305752]
[1742018288331,0.4793667,84339.0,84337.0,0.0744]
[1742018288533,0.5878667,84339.0,84338.0,0.03877788]
[1742018288822,0.5878667,84339.0,84338.0,0.07457788]
[1742018289729,0.5908667,84339.0,84338.0,0.19314598]
[1742018290123,0.5938667,84339.0,84338.0,0.19314598]
[1742018295629,0.5938667,84339.0,84338.0,0.03597788]
[1742018296539,0.1185695,84337.0,84336.0,0.0376]
[1742018296730,0.28,84337.0,84335.0,0.1185715]
[1742018296929,0.432,84336.0,84335.0,0.1185715]
[1742018297135,0.712,84336.0,84335.0,0.1185715]
[1742018297634,0.90254431,84336.0,84335.0,0.1185715]
[1742018298041,0.90254431,84336.0,84335.0,0.1561715]
[1742018299040,0.8918598,84336.0,84335.0,0.1561715]
[1742018300041,0.8918598,84336.0,84335.0,0.1925715]
[1742018300239,0.8938598,84336.0,84335.0,0.1925715]
[1742018306051,0.8938598,84336.0,84327.0,0.0592916]
[1742018306052,0.1185934,84320.0,84319.0,0.21305752]
[1742018306343,0.118599,84316.0,84315.0,0.52112936]
[1742018306645,0.208599,84316.0,84315.0,0.40253016]
[1742018307046,0.118599,84316.0,84315.0,0.40253016]
[1742018307349,0.208599,84316.0,84315.0,0.28393246]
[1742018307845,0.118599,84316.0,84315.0,0.28393246]
[1742018308045,0.228599,84316.0,84315.0,0.28393246]
[1742018309450,0.1186004,84315.0,84314.0,0.1186007]
[1742018309635,0.3047004,84315.0,84314.0,0.1186007]
[1742018313254,0.1947004,84315.0,84314.0,0.1186007]
[1742018320447,0.1947004,84315.0,84314.0,0.1553007]
[1742018321860,0.1947004,84315.0,84314.0,0.1935007]
[1742018323054,0.0761,84315.0,84314.0,0.1935007]
[1742018324257,0.2947004,84315.0,84314.0,0.1935007]
[1742018326865,0.1761,84315.0,84314.0,0.1935007]
[1742018327654,0.0373,84315.0,84314.0,0.1935007]
[1742018327959,0.0374,84319.0,84318.0,0.1185962]
[1742018328263,0.1446,84319.0,84318.0,0.1185962]
[1742018328661,0.1072,84319.0,84318.0,0.1185962]
[1742018328862,0.1441,84319.0,84318.0,0.1185962]
[1742018333767,0.2626948,84319.0,84318.0,0.1185962]
[1742018335460,0.3015948,84319.0,84318.0,0.1185962]
[1742018335763,0.183,84319.0,84318.0,0.1185962]
[1742018335956,0.1441,84319.0,84318.0,0.1185962]
[1742018336156,0.2626948,84319.0,84318.0,0.1185962]
[1742018338360,0.2626948,84319.0,84318.0,0.1553962]
[1742018341868,0.2626948,84319.0,84318.0,0.1935962]
[1742018346075,0.1441,84319.0,84318.0,0.1935962]
[1742018347872,0.2626948,84319.0,84318.0,0.1935962]
[1742018350187,0.1441,84319.0,84318.0,0.1935962]
[1742018350376,0.2626948,84319.0,84318.0,0.1935962]
[1742018358885,0.2626948,84319.0,84318.0,0.1185962]
[1742018359088,0.2626948,84319.0,84318.0,0.1559962]
[1742018361889,0.2626948,84319.0,84318.0,0.1939962]
[1742018366193,0.2626948,84319.0,84318.0,0.0754]
[1742018366989,0.2626948,84319.0,84318.0,0.1939962]
[1742018368096,0.2626948,84319.0,84318.0,0.1185962]
[1742018368483,0.2626948,84319.0,84318.0,0.1547962]
[1742018369188,0.2626948,84319.0,84318.0,0.0362]
[1742018369389,0.1185976,84317.0,84316.0,0.1185986]
[1742018369591,0.118599,84316.0,84315.0,0.1548]
[1742018369781,0.466199,84316.0,84315.0,0.0362]
[1742018369980,0.1779041,84314.0,84313.0,0.1186032]
[1742018370180,0.4579041,84314.0,84313.0,0.0362]
[1742018370385,0.1186047,84312.0,84311.0,0.118605]
[1742018370602,0.7294047,84312.0,84311.0,0.154805]
[1742018370898,0.8044047,84312.0,84311.0,0.193505]
[1742018371391,0.8431047,84312.0,84311.0,0.193505]
[1742018374988,0.8431047,84312.0,84311.0,0.0749]
[1742018375187,0.8431047,84312.0,84305.0,0.31963246]
[1742018375188,0.1186103,84308.0,84307.0,0.13119545]
[1742018375497,0.1779189,84307.0,84306.0,0.1186131]
[1742018375794,0.5240189,84307.0,84306.0,0.1186131]
[1742018377798,0.5250189,84307.0,84306.0,0.1186131]
[1742018378193,0.5260189,84307.0,84306.0,0.1186131]
[1742018378397,0.5260189,84307.0,84306.0,0.1833131]
[1742018379102,0.2460189,84307.0,84306.0,0.1833131]
[1742018379800,0.3560189,84307.0,84306.0,0.1833131]
[1742018381000,0.3560189,84307.0,84306.0,0.0647]
[1742018381302,0.3560189,84307.0,84305.0,0.04825788]
[1742018381303,0.1186131,84306.0,84305.0,0.01255788]
[1742018381606,0.1186187,84304.0,84303.0,0.0593081]
[1742018381789,0.8187273,84304.0,84303.0,0.0593081]
[1742018381989,0.8814273,84304.0,84303.0,0.07149068]
[1742018382204,0.8814273,84304.0,84303.0,0.10189068]
[1742018383702,0.8824273,84304.0,84303.0,0.10189068]
[1742018384801,0.8834273,84304.0,84303.0,0.10189068]
[1742018385902,0.8834273,84304.0,84303.0,0.07149068]
[1742018386694,0.8834273,84304.0,84303.0,0.10329068]
[1742018389995,0.7648086,84304.0,84303.0,0.10329068]
[1742018390397,0.7648086,84304.0,84303.0,0.13529068]
[1742018392709,1.03494661,84304.0,84303.0,0.13529068]
[1742018394503,0.7648086,84304.0,84303.0,0.13529068]
[1742018394702,0.7648086,84304.0,84303.0,0.10329068]
[1742018395406,0.0593162,84295.0,84282.0,0.11412]
[1742018395615,0.1779494,84293.0,84292.0,0.1779471]
[1742018395909,1.1595494,84293.0,84292.0,0.19020243]
[1742018396109,1.2211494,84293.0,84292.0,0.10477103]
[1742018396298,1.191833,84293.0,84292.0,0.07317747]
[1742018396803,1.191833,84293.0,84292.0,0.06517747]
[1742018397206,1.192833,84293.0,84292.0,0.07743771]
[1742018398905,1.07050166,84293.0,84292.0,0.07743771]
[1742018399712,1.01118506,84293.0,84292.0,0.10863771]
[1742018399912,0.84186866,84293.0,84292.0,0.10863771]
[1742018400519,0.84186866,84293.0,84292.0,0.16863771]
[1742018400819,0.84186866,84293.0,84292.0,0.18923771]
[1742018404823,0.7842,84293.0,84292.0,0.32923771]
[1742018405022,0.7842,84293.0,84292.0,0.18923771]
[1742018405721,0.7842,84293.0,84292.0,0.36923771]
[1742018406419,0.7842,84293.0,84292.0,0.18923771]
[1742018407922,0.7842,84293.0,84292.0,0.24923771]
[1742018408219,0.7842,84293.0,84292.0,0.30335771]
[1742018411620,0.7842,84293.0,84292.0,0.36335771]
[1742018412022,0.84187147,84293.0,84292.0,0.36335771]
[1742018412223,0.84187147,84293.0,84292.0,0.24923771]
[1742018412525,0.84187147,84293.0,84292.0,0.36335771]
[1742018413315,0.84087147,84293.0,84292.0,0.36335771]
[1742018413721,0.84087147,84293.0,84292.0,0.30335771]
[1742018415226,1.01802141,84293.0,84292.0,0.30335771]
[1742018416425,1.01802141,84293.0,84292.0,0.36335771]
[1742018418326,1.01802141,84293.0,84292.0,0.30335771]
[1742018418516,0.96034994,84293.0,84292.0,0.30335771]
[1742018418915,0.59954994,84293.0,84292.0,0.30335771]
[1742018419415,0.59954994,84293.0,84292.0,0.07743771]
[1742018419619,0.69954994,84293.0,84292.0,0.07743771]
[1742018419822,0.81818134,84293.0,84292.0,0.07743771]
[1742018420728,0.81818134,84293.0,84292.0,0.01226024]
[1742018420932,0.1186328,84292.0,84291.0,0.1186333]
[1742018421120,0.3986328,84292.0,84291.0,0.1186333]
[1742018421320,0.4604328,84292.0,84291.0,0.1186333]
[1742018422320,0.4604328,84292.0,84291.0,0.13098257]
[1742018426432,0.51810709,84292.0,84291.0,0.13098257]
[1742018427227,0.39947429,84292.0,84291.0,0.13098257]
[1742018427431,0.23810709,84292.0,84291.0,0.13098257]
[1742018427935,0.11947429,84292.0,84291.0,0.13098257]
[1742018428434,0.11947429,84292.0,84291.0,0.19098257]
[1742018428638,0.11947429,84292.0,84291.0,0.13098257]
[1742018429534,0.33196648,84292.0,84291.0,0.13098257]
[1742018431934,0.45059928,84292.0,84291.0,0.13098257]
[1742018433033,0.69059928,84292.0,84291.0,0.13098257]
[1742018433234,0.45059928,84292.0,84291.0,0.13098257]
[1742018434037,0.23810709,84292.0,84291.0,0.13098257]
[1742018435729,0.1186487,84284.0,84283.0,0.1779629]
[1742018436037,0.7294487,84284.0,84283.0,0.3479629]
[1742018436636,0.7956487,84284.0,84283.0,0.3479629]
[1742018437337,0.7966487,84284.0,84283.0,0.3479629]
[1742018438335,0.0593234,84282.0,84274.0,0.059329]
[1742018438534,0.1779949,84272.0,84267.0,0.02]
[1742018438733,0.1186638,84270.0,84267.0,0.02]
[1742018439036,0.1838652,84269.0,84268.0,0.1286666]
[1742018439236,0.4238652,84269.0,84268.0,0.1286666]
[1742018440134,0.4238652,84269.0,84268.0,0.0771666]
[1742018441236,0.4238652,84269.0,84268.0,0.0691666]
[1742018443445,0.48153949,84269.0,84268.0,0.0691666]
[1742018443944,0.42220719,84269.0,84265.0,0.01]
[1742018444145,0.1186694,84267.0,84266.0,0.1186693]
[1742018444341,0.2286694,84267.0,84266.0,0.1186693]
[1742018444544,0.2941694,84267.0,84266.0,0.1186693]
[1742018445331,0.2941694,84267.0,84265.0,0.01]
[1742018445332,0.1186694,84266.0,84265.0,0.01]
[1742018445546,0.1186736,84263.0,84262.0,0.01]
[1742018445747,0.3486736,84263.0,84262.0,0.128675]
[1742018446045,0.3486736,84263.0,84262.0,0.01]
[1742018446232,0.11,84263.0,84252.0,0.1186884]
[1742018446437,0.4794877,84253.0,84252.0,0.36323316]
[1742018447348,0.5452877,84253.0,84252.0,0.36323316]
[1742018448035,0.5452877,84253.0,84252.0,0.24454476]
[1742018448238,0.5452877,84253.0,84252.0,0.07454476]
[1742018449738,0.5452877,84253.0,84252.0,0.01520106]
[1742018449937,0.5452877,84253.0,84252.0,0.1186891]
[1742018450137,0.4266,84253.0,84252.0,0.2176891]
[1742018450947,0.5452877,84253.0,84252.0,0.2176891]
[1742018452249,0.4266,84253.0,84252.0,0.2176891]
[1742018453947,0.4266,84253.0,84252.0,0.23278637]
[1742018455556,0.53231758,84253.0,84252.0,0.23278637]
[1742018456051,0.65100528,84253.0,84252.0,0.23278637]
[1742018457244,0.53231758,84253.0,84252.0,0.23278637]
[1742018457846,0.65100528,84253.0,84252.0,0.23278637]
[1742018458256,0.5452877,84253.0,84252.0,0.23278637]
[1742018460749,0.5452877,84253.0,84252.0,0.16708637]
[1742018461241,0.5775877,84253.0,84252.0,0.16708637]
[1742018461755,0.1780393,84250.0,84249.0,0.0593466]
[1742018461952,0.1780393,84250.0,84249.0,0.2193466]
[1742018462150,0.0325,84251.0,84250.0,0.1186919]
[1742018462348,0.1842914,84251.0,84250.0,0.2086919]
[1742018462652,0.1842914,84251.0,84250.0,0.2405919]
[1742018462854,0.1842914,84251.0,84250.0,0.2086919]
[1742018463845,0.1842914,84251.0,84250.0,0.1505919]
[1742018465049,0.1842914,84251.0,84250.0,0.1834919]
[1742018465856,0.1186933,84249.0,84248.0,0.1286936]
[1742018466044,0.1186933,84249.0,84248.0,0.01]
[1742018466243,0.2086933,84249.0,84248.0,0.1286948]
[1742018468357,0.1186976,84246.0,84245.0,0.01564111]
[1742018468661,0.1187043,84245.0,84244.0,0.118699]
[1742018468961,0.0642,84245.0,84244.0,0.118699]
[1742018469649,0.0642,84245.0,84244.0,0.185199]
[1742018471057,0.0642,84245.0,84244.0,0.200541]
[1742018473348,0.182899,84245.0,84244.0,0.200541]
[1742018473861,0.182899,84245.0,84244.0,0.167141]
[1742018474754,0.24060261,84245.0,84244.0,0.167141]
[1742018475155,0.27260261,84245.0,84244.0,0.167141]
[1742018475862,0.54260261,84245.0,84244.0,0.134041]
[1742018476263,0.27260261,84245.0,84244.0,0.134041]
[1742018476455,0.56260261,84245.0,84244.0,0.134041]
[1742018476958,0.27260261,84245.0,84244.0,0.134041]
[1742018478060,0.53260261,84245.0,84244.0,0.134041]
[1742018478272,0.27260261,84245.0,84244.0,0.134041]
[1742018478767,0.52260261,84245.0,84244.0,0.134041]
[1742018478956,0.27260261,84245.0,84244.0,0.134041]
[1742018480153,0.50260261,84245.0,84244.0,0.134041]
[1742018480366,0.27260261,84245.0,84244.0,0.134041]
[1742018480571,0.54260261,84245.0,84244.0,0.134041]
[1742018480761,0.52260261,84245.0,84244.0,0.134041]
[1742018481071,0.1187018,84243.0,84242.0,0.0593509]
[1742018481366,0.3587018,84243.0,84242.0,0.0593509]
[1742018481566,0.1187018,84243.0,84242.0,0.0593509]
[1742018482862,0.3587018,84243.0,84242.0,0.0593509]
[1742018483057,0.1187018,84243.0,84242.0,0.0593509]
[1742018483253,0.57566885,84230.0,84229.0,0.1187215]
[1742018483470,0.57566885,84230.0,84229.0,0.8087215]
[1742018485868,0.57566885,84230.0,84229.0,0.82432486]
[1742018486862,0.57566885,84230.0,84229.0,0.84002486]
[1742018488759,0.57566885,84230.0,84229.0,0.59342486]
[1742018488961,0.57566885,84230.0,84229.0,0.58432486]
[1742018489470,0.57566885,84230.0,84229.0,0.42432486]
[1742018489860,0.63966885,84230.0,84229.0,0.42432486]
[1742018490768,0.63966885,84230.0,84229.0,0.60432486]
[1742018491360,0.63966885,84230.0,84229.0,0.62012486]
[1742018494077,0.63966885,84230.0,84229.0,0.44012486]
[1742018495973,0.63966885,84230.0,84229.0,0.42432486]
[1742018496273,0.67296885,84230.0,84229.0,0.42432486]
[1742018496665,0.73068363,84230.0,84229.0,0.42432486]
[1742018500271,0.84940373,84230.0,84229.0,0.42432486]
[1742018501569,0.73068363,84230.0,84229.0,0.42432486]
[1742018502975,0.94320804,84230.0,84229.0,0.42432486]
[1742018503575,1.06192814,84230.0,84229.0,0.42432486]
[1742018506672,0.84940373,84230.0,84229.0,0.42432486]
[1742018506874,0.73068363,84230.0,84229.0,0.42432486]
[1742018508585,0.84940373,84230.0,84229.0,0.42432486]
[1742018510983,0.73068363,84230.0,84229.0,0.42432486]
[1742018514476,0.84940373,84230.0,84229.0,0.42432486]
[1742018514786,0.84927708,84230.0,84229.0,0.42432486]
[1742018517275,0.84927708,84230.0,84229.0,0.39432486]
[1742018528794,0.84927708,84230.0,84229.0,0.40432486]
[1742018529693,0.84927708,84230.0,84229.0,0.27560336]
[1742018530495,0.84927708,84230.0,84229.0,0.39432486]
[1742018541208,0.86015244,84230.0,84229.0,0.39432486]
[1742018541891,0.86015199,84230.0,84229.0,0.39432486]
[1742018542702,0.86016493,84230.0,84229.0,0.39432486]
[1742018544703,0.86016493,84230.0,84229.0,0.27560336]
[1742018545607,0.86016493,84230.0,84229.0,0.39432486]
[1742018546303,0.86016493,84230.0,84229.0,0.27560336]
[1742018546707,0.86016493,84230.0,84229.0,0.26]
[1742018546902,1.14016493,84230.0,84229.0,0.26]
[1742018547103,0.86016493,84230.0,84229.0,0.26]
[1742018548910,0.86016493,84230.0,84229.0,0.3787215]
[1742018549117,1.03442525,84230.0,84229.0,0.26]
[1742018551602,1.03442525,84230.0,84229.0,0.3787215]
[1742018552303,0.86016493,84230.0,84229.0,0.3787215]
[1742018558011,0.82686493,84230.0,84229.0,0.3787215]
[1742018560417,0.82686493,84230.0,84229.0,0.3909215]
[1742018562220,0.70814483,84230.0,84229.0,0.3909215]
[1742018564018,0.70814483,84230.0,84229.0,0.4007215]
[1742018565624,0.70825347,84230.0,84229.0,0.4007215]
[1742018567630,0.70825373,84230.0,84229.0,0.4007215]
[1742018570428,0.70825373,84230.0,84229.0,0.3787215]
[1742018573317,0.70825373,84230.0,84229.0,0.3909215]
[1742018575735,0.70810352,84230.0,84229.0,0.5307215]
[1742018577735,0.70810352,84230.0,84229.0,0.6447615]
[1742018578228,0.69725698,84230.0,84229.0,0.6447615]
[1742018579739,0.90989564,84230.0,84229.0,0.6447615]
[1742018583834,0.81667156,84230.0,84229.0,0.6447615]
[1742018584239,0.81667156,84230.0,84229.0,0.6547615]
[1742018585538,0.81667156,84230.0,84229.0,0.5407215]
[1742018586043,0.81667156,84230.0,84229.0,0.6547615]
[1742018586238,0.81667156,84230.0,84229.0,0.5407215]
[1742018586444,0.81667156,84230.0,84229.0,0.6547615]
[1742018587738,0.81667156,84230.0,84229.0,0.5407215]
[1742018587939,0.6395422,84230.0,84229.0,0.6547615]
[1742018588337,0.6395422,84230.0,84229.0,0.5407215]
[1742018588529,0.6395422,84230.0,84229.0,0.6547615]
[1742018589143,0.6395422,84230.0,84229.0,0.5407215]
[1742018589345,0.6395422,84230.0,84229.0,0.6547615]
[1742018590142,0.6395422,84230.0,84229.0,0.5407215]
[1742018590449,0.6395422,84230.0,84229.0,0.6547615]
[1742018591745,0.6395422,84230.0,84229.0,0.5407215]
[1742018591946,0.6395422,84230.0,84229.0,0.6547615]
[1742018592131,0.6395422,84230.0,84229.0,0.5407215]
[1742018592331,0.6395422,84230.0,84229.0,0.6547615]
[1742018592750,0.6395422,84230.0,84229.0,0.5407215]
[1742018592939,0.6395422,84230.0,84229.0,0.6547615]
[1742018594345,0.6395422,84230.0,84229.0,0.6449615]
[1742018594649,0.6395422,84230.0,84229.0,0.6327615]
[1742018596138,0.6395422,84230.0,84229.0,0.5187215]
[1742018596548,0.6395422,84230.0,84229.0,0.6327615]
[1742018599747,0.6395422,84230.0,84229.0,0.5187215]
[1742018599939,0.6395422,84230.0,84229.0,0.6327615]
[1742018600139,0.6395422,84230.0,84229.0,0.5187215]
[1742018600438,0.6395422,84230.0,84229.0,0.6327615]
[1742018602346,0.6395422,84230.0,84229.0,0.5187215]
[1742018602548,0.6395422,84230.0,84229.0,0.6327615]
[1742018602847,0.6395422,84230.0,84229.0,0.5187215]
[1742018603153,0.6395422,84230.0,84229.0,0.6327615]
[1742018603748,0.6395422,84230.0,84229.0,0.5187215]
[1742018603949,0.6395422,84230.0,84229.0,0.6327615]
[1742018606445,0.6395422,84230.0,84229.0,0.5187215]
[1742018606646,0.6395422,84230.0,84229.0,0.6327615]
[1742018607853,0.69725054,84230.0,84229.0,0.5187215]
[1742018608155,0.69725054,84230.0,84229.0,0.6327615]
[1742018608754,0.69725054,84230.0,84229.0,0.5187215]
[1742018608949,0.69725054,84230.0,84229.0,0.6327615]
[1742018611260,0.69725054,84230.0,84229.0,0.5187215]
[1742018611554,0.69725054,84230.0,84229.0,0.6327615]
[1742018613551,0.69725054,84230.0,84229.0,0.5187215]
[1742018613751,0.69725054,84230.0,84229.0,0.6327615]
[1742018615853,0.69725054,84230.0,84229.0,0.5495215]
[1742018616065,0.69725054,84230.0,84229.0,0.6635215]
[1742018617454,0.69725054,84230.0,84229.0,0.6735215]
[1742018618055,0.69725054,84230.0,84229.0,0.5595215]
[1742018618270,0.69725054,84230.0,84229.0,0.6735215]
[1742018618553,0.69725054,84230.0,84229.0,0.5595215]
[1742018618750,0.69725054,84230.0,84229.0,0.6735215]
[1742018618964,0.67143844,84230.0,84229.0,0.6735215]
[1742018619351,0.53495084,84230.0,84229.0,0.6735215]
[1742018619551,0.17311983,84238.0,84237.0,0.1187103]
[1742018619856,0.24790755,84242.0,84241.0,0.1187046]
[1742018620051,0.24790755,84242.0,84241.0,1.0427046]
[1742018620965,0.24790755,84246.0,84245.0,0.118699]
[1742018621165,0.24790755,84246.0,84245.0,0.668699]
[1742018622155,0.24790755,84246.0,84245.0,0.782699]
[1742018623764,0.24790755,84246.0,84245.0,0.819599]
[1742018623964,0.24790755,84246.0,84245.0,0.829599]
[1742018624165,0.24790755,84246.0,84245.0,0.864299]
[1742018624867,0.17720262,84246.0,84245.0,0.864299]
[1742018625367,0.0702,84249.0,84248.0,0.1186948]
[1742018625552,0.0702,84249.0,84248.0,0.9886948]
[1742018625770,0.60870755,84264.0,84259.0,0.0593396]
[1742018626059,0.60934755,84264.0,84261.0,0.1186764]
[1742018626358,0.60934755,84264.0,84261.0,0.3786764]
[1742018627759,0.60934755,84264.0,84261.0,0.3924613]
[1742018627960,0.60934755,84264.0,84261.0,0.4424613]
[1742018628361,0.60934755,84264.0,84261.0,0.4524613]
[1742018628558,0.60934755,84264.0,84261.0,0.3924613]
[1742018628760,0.36144,84264.0,84261.0,0.3924613]
[1742018629062,0.1059,84263.0,84262.0,0.118675]
[1742018629259,0.0716,84263.0,84262.0,0.962875]
[1742018629461,0.0716,84263.0,84262.0,0.998075]
[1742018640576,0.0716,84263.0,84262.0,1.018075]
[1742018640797,0.3608,84268.0,84265.0,0.1186708]
[1742018640977,0.3608,84268.0,84267.0,0.118668]
[1742018641178,0.3608,84268.0,84267.0,0.918668]
[1742018641482,0.3608,84268.0,84267.0,0.988868]
[1742018641872,0.0368,84275.0,84271.0,0.0593308]
[1742018642165,0.0368,84275.0,84274.0,0.1186581]
[1742018642379,0.0368,84275.0,84274.0,0.3586581]
[1742018642573,0.0368,84275.0,84274.0,0.4286581]
[1742018646077,0.0368,84275.0,84274.0,0.5426181]
[1742018646974,0.0368,84275.0,84274.0,0.4286581]
[1742018647175,0.0368,84275.0,84274.0,0.5426181]
[1742018650781,0.0368,84275.0,84274.0,0.4286581]
[1742018651082,0.0368,84275.0,84274.0,0.5426181]
[1742018653883,0.0368,84275.0,84274.0,0.5060181]
[1742018654682,0.0368,84275.0,84274.0,0.5394181]
[1742018657690,0.09448484,84275.0,84274.0,0.5394181]
[1742018657987,0.09448484,84275.0,84274.0,0.4254581]
[1742018658382,0.09448484,84275.0,84274.0,0.5394181]
[1742018658990,0.09448484,84275.0,84274.0,0.4726181]
[1742018659181,0.09448484,84275.0,84274.0,0.3586581]
[1742018659991,0.16318484,84275.0,84274.0,0.3586581]
[1742018664491,0.16318484,84275.0,84274.0,0.3923581]
[1742018664996,0.16318484,84275.0,84274.0,0.4276581]
[1742018678399,0.28184154,84275.0,84274.0,0.4276581]
[1742018678804,0.52398484,84275.0,84274.0,0.4276581]
[1742018679909,0.52398484,84275.0,84274.0,0.4600581]
[1742018681300,0.52398484,84275.0,84274.0,0.4276581]
[1742018681607,0.28184154,84275.0,84274.0,0.4276581]
[1742018682403,0.64264154,84275.0,84274.0,0.4276581]
[1742018684700,0.60584154,84275.0,84274.0,0.4276581]
[1742018684909,0.69584154,84275.0,84274.0,0.4276581]
[1742018685216,0.69584154,84275.0,84274.0,0.1876581]
[1742018686515,0.69584154,84275.0,84267.0,0.0593336]
[1742018686712,0.69584154,84275.0,84267.0,0.2293336]
[1742018686713,0.3608,84268.0,84267.0,0.2293336]
[1742018686915,0.5694666,84268.0,84267.0,0.0593336]
[1742018687310,0.6384666,84268.0,84267.0,0.0593336]
[1742018687820,0.64934002,84268.0,84267.0,0.0593336]